fUST/lending_fUST_20240212
["ID","MTS","AMOUNT","RATE_DAILY","PERIOD"]
[313770858,1707711044900,-500.0,0.0002027,2]
[313770859,1707711044911,-500.0,0.0002027,2]
[313770860,1707711044921,-500.0,0.0002027,2]
[313770861,1707711044930,-500.0,0.0002027,2]
[313770862,1707711044940,-700.41,0.0002027,2]
[313770863,1707711044949,-634.24702519,0.0002027,2]
[313770864,1707711044958,-500.0,0.0002027,2]
[313770865,1707711044967,-500.0,0.0002027,2]
[313770866,1707711044976,-500.0,0.0002027,2]
[313770867,1707711044985,-500.0,0.0002027,2]
[313770868,1707711044994,-500.0,0.0002027,2]
[313770869,1707711045005,-510.44993485,0.0002027,2]
[313770870,1707711045014,-500.0,0.0002027,2]
[313770871,1707711045023,-544.75028963,0.0002027,2]
[313770872,1707711045032,-500.0,0.0002027,2]
[313770873,1707711045041,-899.16,0.0002027,2]
[313770874,1707711045050,-500.0,0.0002027,2]
[313770875,1707711045059,-500.0,0.0002027,2]
[313770876,1707711045068,-500.0,0.0002027,2]
[313770877,1707711045077,-500.0,0.0002027,2]
[313770878,1707711045086,-667.31,0.0002027,2]
[313770879,1707711045095,-500.0,0.0002027,2]
[313770880,1707711045104,-500.0,0.0002027,2]
[313770881,1707711045113,-500.0,0.0002027,2]
[313770882,1707711045122,-588.21,0.0002027,2]
[313770883,1707711045131,-500.0,0.0002027,2]
[313770884,1707711045140,-502.51,0.0002027,2]
[313770885,1707711045150,-3967.79,0.0002027,2]
[313770886,1707711045159,-500.0,0.0002027,2]
[313770887,1707711045169,-3507.12,0.0002027,2]
[313770888,1707711045178,-500.0,0.0002027,2]
[313770889,1707711045187,-2765.49,0.0002027,2]
[313770890,1707711045196,-500.0,0.0002027,2]
[313770891,1707711045205,-270.52341909,0.0002027,2]
[313770892,1707711045215,-500.0,0.00020271,2]
[313770893,1707711045223,-500.0,0.00020271,2]
[313770894,1707711045232,-500.0,0.00020271,2]
[313770895,1707711045242,-500.0,0.00020271,2]
[313770896,1707711045251,-500.0,0.00020271,2]
[313770897,1707711045260,-500.0,0.00020271,2]
[313770898,1707711045269,-500.0,0.00020271,2]
[313770899,1707711045278,-500.0,0.00020271,2]
[313770900,1707711045287,-522.17712676,0.00020271,2]
[313770901,1707711045297,-500.0,0.00020271,2]
[313770902,1707711045307,-500.0,0.00020271,2]
[313770903,1707711045316,-500.0,0.00020271,2]
[313770904,1707711045325,-500.0,0.00020271,2]
[313770905,1707711045335,-500.0,0.00020271,2]
[313770906,1707711045344,-500.0,0.00020271,2]
[313770907,1707711045353,-500.0,0.00020271,2]
[313770908,1707711045362,-502.18074473,0.00020271,2]
[313770909,1707711045372,-500.0,0.00020271,2]
[313770910,1707711045381,-500.0,0.00020271,2]
[313770911,1707711045390,-500.0,0.00020271,2]
[313770912,1707711045399,-500.0,0.00020271,2]
[313770913,1707711045408,-550.31738257,0.00020271,2]
[313770914,1707711045418,-525.76472643,0.00020271,2]
[313770915,1707711045429,-500.0,0.00020271,2]
[313770916,1707711045439,-500.0,0.00020271,2]
[313770917,1707711045448,-500.0,0.00020271,2]
[313770918,1707711045458,-500.0,0.00020271,2]
[313770919,1707711045468,-500.0,0.00020271,2]
[313770920,1707711045478,-497.73179366,0.00020271,2]
[313770921,1707711045488,-500.0,0.00020271,2]
[313770922,1707711045498,-500.0,0.00020271,2]
[313770923,1707711045508,-500.0,0.00020271,2]
[313770924,1707711045517,-500.0,0.00020271,2]
[313770925,1707711045526,-313.56903725,0.00020271,2]
[313770926,1707711045536,-500.0,0.00020271,2]
[313770927,1707711045546,-181.234357,0.00020271,2]
[313770928,1707711045556,-554.14,0.00020271,2]
[313770929,1707711045565,-500.0,0.00020271,2]
[313770930,1707711045575,-500.0,0.00020271,2]
[313770931,1707711045584,-505.20786493,0.00020271,2]
[313770932,1707711045593,-500.0,0.00020271,2]
[313770933,1707711045602,-500.0,0.00020271,2]
[313770934,1707711045612,-500.0,0.00020271,2]
[313770935,1707711045623,-500.0,0.00020271,2]
[313770936,1707711045632,-500.0,0.00020271,2]
[313770937,1707711045642,-502.7533971,0.00020271,2]
[313770938,1707711045651,-500.0,0.00020271,2]
[313770939,1707711045661,-502.55039059,0.00020271,2]
[313770940,1707711045670,-500.0,0.00020271,2]
[313770941,1707711045680,-500.0,0.00020271,2]
[313770942,1707711045691,-500.0,0.00020271,2]
[313770943,1707711045701,-631.31649073,0.00020271,2]
[313770944,1707711045710,-368.54534087,0.00020271,2]
[313770945,1707711045719,-500.0,0.00020271,2]
[313770946,1707711045728,-500.0,0.00020271,2]
[313770947,1707711045737,-500.0,0.00020271,2]
[313770948,1707711045748,-500.0,0.00020271,2]
[313770949,1707711045757,-500.0,0.00020271,2]
[313770950,1707711045766,-500.0,0.00020271,2]
[313770951,1707711045776,-195.93493407,0.00020271,2]
[313770952,1707711045784,-500.0,0.00020272,2]
[313770953,1707711045794,-500.0,0.00020272,2]
[313770954,1707711045803,-151.0,0.0002047,2]
[313770955,1707711045813,-181.20732588,0.00020471,2]
[313770956,1707711045822,-156.40574432,0.00020472,2]
[313770957,1707711045832,-565.47907978,0.00020472,2]
[313770958,1707711045841,-644.66104355,0.00020472,2]
[313770959,1707711045850,-155.76312342,0.00020473,2]
[313770960,1707711045859,-500.0,0.00020485,2]
[313770961,1707711045868,-500.0,0.00020485,2]
[313770962,1707711045877,-500.0,0.00020485,2]
[313770963,1707711045886,-500.0,0.00020485,2]
[313770964,1707711045895,-5000.0,0.00020485,2]
[313770965,1707711045904,-6559.62944536,0.00020485,2]
[313770967,1707711045914,-5000.0,0.00020485,2]
[313770969,1707711045924,-5000.0,0.00020485,2]
[313770971,1707711045932,-5000.0,0.00020485,2]
[313770973,1707711045942,-500.0,0.00020485,2]
[313770974,1707711045950,-500.0,0.00020485,2]
[313770976,1707711045959,-500.0,0.00020485,2]
[313770977,1707711045968,-899.16,0.00020485,2]
[313770978,1707711045977,-899.16,0.00020485,2]
[313770979,1707711045986,-899.16,0.00020485,2]
[313770980,1707711045995,-6242.80230106,0.00020485,2]
[313770981,1707711046004,-500.0,0.00020485,2]
[313770982,1707711046013,-500.0,0.00020485,2]
[313770983,1707711046022,-500.0,0.00020485,2]
[313770984,1707711046031,-5000.0,0.00020486,2]
[313770985,1707711046040,-2285.23322656,0.00020486,2]
[313770986,1707711046049,-50000.0,0.00020486,2]
[313770987,1707711046058,-7010.80266165,0.00020486,2]
[313770988,1707711046067,-1961.55630216,0.00020487,2]
[313770990,1707711046076,-5000.0,0.00020487,2]
[313770991,1707711046085,-294.36488536,0.00020536,2]
[313770992,1707711046094,-500.0,0.00020536,2]
[313770993,1707711046103,-1829.52,0.00020542,2]
[313770994,1707711046112,-500.0,0.00020542,2]
[313770995,1707711046121,-500.0,0.00020543,2]
[313770996,1707711046130,-500.0,0.00020543,2]
[313770997,1707711046139,-500.0,0.00020543,2]
[313770998,1707711046148,-500.0,0.00020543,2]
[313770999,1707711046157,-500.0,0.00020543,2]
[313771000,1707711046167,-500.0,0.00020543,2]
[313771001,1707711046177,-500.0,0.00020543,2]
[313771002,1707711046186,-500.0,0.00020543,2]
[313771003,1707711046195,-500.0,0.00020543,2]
[313771004,1707711046204,-500.0,0.00020543,2]
[313771005,1707711046214,-500.0,0.00020543,2]
[313771006,1707711046222,-500.0,0.00020543,2]
[313771007,1707711046231,-500.0,0.00020543,2]
[313771008,1707711046240,-500.0,0.00020543,2]
[313771009,1707711046250,-500.0,0.00020543,2]
[313771010,1707711046259,-500.0,0.00020543,2]
[313771011,1707711046268,-500.0,0.00020543,2]
[313771012,1707711046277,-500.0,0.00020543,2]
[313771013,1707711046286,-537.95,0.00020543,2]
[313771014,1707711046295,-510.84584945,0.00020543,2]
[313771015,1707711046304,-508.01363327,0.00020543,2]
[313771016,1707711046313,-500.0,0.00020543,2]
[313771017,1707711046322,-500.0,0.00020543,2]
[313771018,1707711046332,-500.0,0.00020543,2]
[313771019,1707711046341,-4403.81,0.00020543,2]
[313771020,1707711046350,-7458.97,0.00020543,2]
[313771021,1707711046360,-500.0,0.00020543,2]
[313771022,1707711046369,-500.0,0.00020543,2]
[313771023,1707711046379,-500.0,0.00020543,2]
[313771024,1707711046388,-500.0,0.00020543,2]
[313771025,1707711046398,-549.28566925,0.00020543,2]
[313771026,1707711046407,-500.0,0.00020543,2]
[313771027,1707711046416,-500.0,0.00020543,2]
[313771028,1707711046425,-500.0,0.00020543,2]
[313771029,1707711046434,-500.0,0.00020543,2]
[313771030,1707711046443,-508.02466387,0.00020543,2]
[313771031,1707711046452,-505.28282531,0.00020543,2]
[313771032,1707711046461,-500.0,0.00020543,2]
[313771033,1707711046471,-500.0,0.00020543,2]
[313771034,1707711046480,-505.47550368,0.00020543,2]
[313771035,1707711046489,-540.30903169,0.00020543,2]
[313771036,1707711046499,-500.0,0.00020543,2]
[313771037,1707711046508,-503.49540411,0.00020543,2]
[313771038,1707711046518,-500.0,0.00020543,2]
[313771039,1707711046527,-500.0,0.00020543,2]
[313771040,1707711046536,-500.0,0.00020543,2]
[313771041,1707711046546,-319.86430146,0.00020543,2]
[313771042,1707711046555,-507.1094698,0.00020543,2]
[313771044,1707711046564,-504.71517562,0.00020543,2]
[313771046,1707711046573,-500.0,0.00020543,2]
[313771048,1707711046583,-500.0,0.00020543,2]
[313771050,1707711046592,-500.0,0.00020543,2]
[313771052,1707711046601,-500.0,0.00020543,2]
[313771053,1707711046611,-500.0,0.00020543,2]
[313771054,1707711046623,-1950.29,0.00020543,2]
[313771055,1707711046632,-502.03530134,0.00020543,2]
[313771056,1707711046641,-3099.04,0.00020543,2]
[313771057,1707711046650,-500.0,0.00020543,2]
[313771058,1707711046660,-507.94077599,0.00020543,2]
[313771059,1707711046670,-505.58815713,0.00020543,2]
[313771060,1707711046679,-704.41,0.00020543,2]
[313771061,1707711046688,-502.98449145,0.00020543,2]
[313771062,1707711046698,-500.0,0.00020543,2]
[313771063,1707711046708,-500.0,0.00020543,2]
[313771064,1707711046717,-341.60742975,0.00020544,2]
[313771065,1707711046726,-502.01650814,0.00020544,2]
[313771066,1707711046734,-505.86790615,0.00020544,2]
[313771067,1707711046743,-501.77459686,0.00020544,2]
[313771068,1707711046752,-510.73455519,0.00020544,2]
[313771069,1707711046762,-543.01493764,0.00020544,2]
[313771070,1707711046771,-500.0,0.00020544,2]
[313771071,1707711046780,-500.0,0.00020544,2]
[313771072,1707711046789,-500.0,0.00020544,2]
[313771073,1707711046798,-500.0,0.00020544,2]
[313771074,1707711046807,-506.08782046,0.00020544,2]
[313771075,1707711046816,-506.11916796,0.00020544,2]
[313771076,1707711046825,-500.0,0.00020544,2]
[313771077,1707711046835,-500.0,0.00020544,2]
[313771078,1707711046844,-506.21107037,0.00020544,2]
[313771079,1707711046853,-700.41,0.00020544,2]
[313771080,1707711046862,-500.0,0.00020544,2]
[313771081,1707711046871,-500.0,0.00020544,2]
[313771082,1707711046881,-500.0,0.00020544,2]
[313771083,1707711046889,-500.0,0.00020544,2]
[313771084,1707711046899,-500.0,0.00020544,2]
[313771085,1707711046908,-500.0,0.00020544,2]
[313771086,1707711046917,-508.14306142,0.00020544,2]
[313771087,1707711046927,-506.83196871,0.00020544,2]
[313771088,1707711046937,-500.0,0.00020544,2]
[313771089,1707711046946,-506.65969705,0.00020544,2]
[313771090,1707711046955,-500.0,0.00020544,2]
[313771091,1707711046964,-667.31,0.00020544,2]
[313771092,1707711046973,-505.55431743,0.00020544,2]
[313771093,1707711046982,-500.0,0.00020544,2]
[313771094,1707711046991,-508.27387728,0.00020544,2]
[313771095,1707711047000,-588.21,0.00020544,2]
[313771096,1707711047009,-500.0,0.00020544,2]
[313771097,1707711047018,-502.51,0.00020544,2]
[313771098,1707711047027,-3967.79,0.00020544,2]
[313771099,1707711047036,-500.0,0.00020544,2]
[313771100,1707711047045,-3507.12,0.00020544,2]
[313771101,1707711047054,-2765.49,0.00020544,2]
[313771102,1707711047063,-500.0,0.00020544,2]
[313771103,1707711047072,-506.28100568,0.00020545,2]
[313771104,1707711047081,-505.1461842,0.00020545,2]
[313771105,1707711047090,-504.07981887,0.00020545,2]
[313771106,1707711047099,-504.93594715,0.00020545,2]
[313771107,1707711047108,-507.57930367,0.00020545,2]
[313771108,1707711047117,-500.0,0.00020545,2]
[313771109,1707711047126,-500.0,0.00020545,2]
[313771110,1707711047135,-500.0,0.00020545,2]
[313771111,1707711047145,-500.0,0.00020545,2]
[313771112,1707711047154,-500.0,0.00020545,2]
[313771113,1707711047163,-500.0,0.00020545,2]
[313771114,1707711047172,-500.0,0.00020545,2]
[313771115,1707711047182,-500.0,0.00020545,2]
[313771116,1707711047190,-500.0,0.00020545,2]
[313771117,1707711047199,-500.0,0.00020545,2]
[313771118,1707711047208,-500.0,0.00020545,2]
[313771119,1707711047218,-500.0,0.00020545,2]
[313771120,1707711047227,-500.0,0.00020545,2]
[313771121,1707711047237,-500.0,0.00020545,2]
[313771122,1707711047246,-507.43748519,0.00020545,2]
[313771123,1707711047255,-503.9842136,0.00020545,2]
[313771124,1707711047265,-500.0,0.00020545,2]
[313771125,1707711047274,-500.0,0.00020545,2]
[313771126,1707711047284,-500.0,0.00020545,2]
[313771127,1707711047293,-500.0,0.00020545,2]
[313771128,1707711047302,-361.48710857,0.00020545,2]
[313771129,1707711047311,-500.0,0.00020545,2]
[313771130,1707711047320,-500.0,0.00020545,2]
[313771131,1707711047329,-603.3913053,0.00020545,2]
[313771132,1707711047338,-500.0,0.00020545,2]
[313771133,1707711047348,-500.0,0.00020545,2]
[313771134,1707711047357,-500.0,0.00020545,2]
[313771135,1707711047366,-507.78217694,0.00020545,2]
[313771136,1707711047376,-500.0,0.00020545,2]
[313771137,1707711047385,-500.0,0.00020545,2]
[313771138,1707711047394,-500.0,0.00020545,2]
[313771139,1707711047403,-500.0,0.00020545,2]
[313771140,1707711047412,-187.28618666,0.00020545,2]
[313771141,1707711047421,-500.0,0.00020545,2]
[313771142,1707711047431,-500.0,0.00020545,2]
[313771143,1707711047440,-500.0,0.00020545,2]
[313771144,1707711047450,-500.0,0.00020545,2]
[313771145,1707711047459,-500.0,0.00020545,2]
[313771146,1707711047469,-500.0,0.00020545,2]
[313771147,1707711047478,-500.0,0.00020545,2]
[313771148,1707711047487,-500.0,0.00020545,2]
[313771149,1707711047497,-383.0,0.000206,9]
[313771150,1707711047507,-1000.0,0.0002067,2]
[313771151,1707711047516,-500.0,0.00020684,2]
[313771152,1707711047619,-1000.0,0.00020779,2]
[313771153,1707711047629,-1000.0,0.00020779,2]
[313771154,1707711047638,-1000.0,0.00020779,2]
[313771155,1707711047647,-1000.0,0.00020779,2]
[313771156,1707711047656,-1000.0,0.00020779,2]
[313771157,1707711047665,-1000.0,0.00020779,2]
[313771158,1707711047674,-500.0,0.00020799,2]
[313771159,1707711047684,-8683.55680084,0.000208,2]
[313771160,1707711047693,-1000.0,0.00020805,2]
[313771161,1707711047703,-1000.0,0.00020805,2]
[313771162,1707711047712,-504.26544409,0.0002081,2]
[313771163,1707711047721,-1829.52,0.00020816,2]
[313771164,1707711047730,-500.0,0.00020816,2]
[313771165,1707711047739,-500.0,0.00020817,2]
[313771166,1707711047748,-505.3336902,0.00020817,2]
[313771167,1707711047757,-500.0,0.00020817,2]
[313771168,1707711047766,-500.0,0.00020817,2]
[313771169,1707711047776,-507.61514363,0.00020817,2]
[313771170,1707711047785,-500.0,0.00020817,2]
[313771171,1707711047794,-500.0,0.00020817,2]
[313771172,1707711047803,-500.0,0.00020817,2]
[313771173,1707711047812,-500.0,0.00020817,2]
[313771174,1707711047822,-503.38793079,0.00020817,2]
[313771175,1707711047831,-500.0,0.00020817,2]
[313771176,1707711047841,-402.75360077,0.00020817,2]
[313771177,1707711047850,-500.0,0.00020817,2]
[313771178,1707711047859,-505.07599555,0.00020817,2]
[313771179,1707711047868,-537.95,0.00020817,2]
[313771180,1707711047877,-500.0,0.00020817,2]
[313771181,1707711047887,-500.0,0.00020817,2]
[313771182,1707711047896,-500.0,0.00020817,2]
[313771183,1707711047905,-4403.81,0.00020817,2]
[313771184,1707711047914,-7458.97,0.00020817,2]
[313771185,1707711047924,-500.0,0.00020817,2]
[313771186,1707711047933,-506.52914175,0.00020817,2]
[313771187,1707711047943,-500.0,0.00020817,2]
[313771188,1707711047952,-506.57113098,0.00020817,2]
[313771189,1707711047961,-500.0,0.00020817,2]
[313771190,1707711047970,-500.0,0.00020817,2]
[313771191,1707711047979,-500.0,0.00020817,2]
[313771192,1707711047989,-506.0847363,0.00020817,2]
[313771193,1707711047998,-500.0,0.00020817,2]
[313771194,1707711048007,-500.0,0.00020817,2]
[313771195,1707711048016,-500.0,0.00020817,2]
[313771196,1707711048025,-500.0,0.00020817,2]
[313771197,1707711048035,-520.69523928,0.00020817,2]
[313771198,1707711048044,-616.10119971,0.00020817,2]
[313771199,1707711048054,-1950.29,0.00020817,2]
[313771200,1707711048063,-3099.04,0.00020817,2]
[313771201,1707711048072,-500.0,0.00020817,2]
[313771202,1707711048081,-704.41,0.00020817,2]
[313771203,1707711048091,-500.0,0.00020817,2]
[313771204,1707711048100,-500.0,0.00020817,2]
[313771205,1707711048109,-500.0,0.00020818,2]
[313771206,1707711048118,-500.0,0.00020818,2]
[313771207,1707711048128,-503.72598798,0.00020818,2]
[313771208,1707711048137,-503.55658384,0.00020818,2]
[313771209,1707711048146,-500.0,0.00020818,2]
[313771210,1707711048155,-507.80704867,0.00020818,2]
[313771211,1707711048164,-700.41,0.00020818,2]
[313771212,1707711048174,-500.0,0.00020818,2]
[313771213,1707711048183,-489.87622238,0.00020818,2]
[313771214,1707711048192,-503.32022095,0.00020818,2]
[313771215,1707711048202,-500.0,0.00020818,2]
[313771216,1707711048211,-500.0,0.00020818,2]
[313771217,1707711048220,-521.14773946,0.00020818,2]
[313771218,1707711048229,-899.16,0.00020818,2]
[313771219,1707711048238,-500.0,0.00020818,2]
[313771220,1707711048247,-500.0,0.00020818,2]
[313771221,1707711048257,-667.31,0.00020818,2]
[313771222,1707711048266,-500.0,0.00020818,2]
[313771223,1707711048275,-588.21,0.00020818,2]
[313771224,1707711048284,-500.0,0.00020818,2]
[313771225,1707711048293,-502.51,0.00020818,2]
[313771226,1707711048303,-3967.79,0.00020818,2]
[313771227,1707711048312,-395.68928393,0.00020818,2]
[313771228,1707711048322,-3507.12,0.00020818,2]
[313771229,1707711048331,-500.0,0.00020818,2]
[313771230,1707711048340,-2765.49,0.00020818,2]
[313771231,1707711048350,-500.0,0.00020818,2]
[313771232,1707711048359,-500.0,0.00020819,2]
[313771233,1707711048367,-500.0,0.00020819,2]
[313771234,1707711048377,-500.0,0.00020819,2]
[313771235,1707711048386,-500.0,0.00020819,2]
[313771236,1707711048395,-500.0,0.00020819,2]
[313771237,1707711048404,-511.11603172,0.00020819,2]
[313771238,1707711048413,-502.69754088,0.00020819,2]
[313771239,1707711048423,-404.25568363,0.00020819,2]
[313771240,1707711048432,-504.06295287,0.00020819,2]
[313771241,1707711048441,-503.158879,0.00020819,2]
[313771242,1707711048450,-500.0,0.00020819,2]
[313771243,1707711048459,-500.0,0.00020819,2]
[313771244,1707711048469,-500.0,0.00020819,2]
[313771245,1707711048478,-506.98481136,0.00020819,2]
[313771246,1707711048487,-506.02030265,0.00020819,2]
[313771247,1707711048497,-502.9136535,0.00020819,2]
[313771248,1707711048507,-422.67037,0.00020819,2]
[313771249,1707711048516,-642.69996145,0.00020819,2]
[313771250,1707711048526,-501.48159519,0.00020819,2]
[313771251,1707711048535,-506.01723973,0.00020819,2]
[313771252,1707711048544,-500.0,0.00020819,2]
[313771253,1707711048552,-500.0,0.00020819,2]
[313771254,1707711048561,-500.0,0.00020819,2]
[313771255,1707711048570,-502.09712991,0.00020819,2]
[313771256,1707711048579,-500.0,0.00020819,2]
[313771257,1707711048589,-422.90338267,0.00020819,2]
[313771258,1707711048597,-500.0,0.00020819,2]
[313771259,1707711048607,-500.0,0.00020819,2]
[313771260,1707711048618,-500.0,0.00020819,2]
[313771261,1707711048628,-502.31828132,0.00020819,2]
[313771262,1707711048637,-500.0,0.00020819,2]
[313771263,1707711048646,-505.66401964,0.00020819,2]
[313771264,1707711048655,-506.84064999,0.00020819,2]
[313771265,1707711048666,-500.0,0.00020821,2]
[313771266,1707711048674,-500.0,0.00020822,2]
[313771267,1707711048683,-500.0,0.00020822,2]
[313771268,1707711048693,-500.0,0.00020822,2]
[313771269,1707711048702,-500.0,0.00020822,2]
[313771270,1707711048711,-500.0,0.00020822,2]
[313771271,1707711048720,-500.0,0.00020822,2]
[313771272,1707711048729,-500.0,0.00020822,2]
[313771273,1707711048738,-500.0,0.00020822,2]
[313771274,1707711048746,-500.0,0.00020822,2]
[313771275,1707711048755,-500.0,0.00020822,2]
[313771276,1707711048765,-500.0,0.00020822,2]
[313771277,1707711048774,-500.0,0.00020822,2]
[313771278,1707711048783,-500.0,0.00020822,2]
[313771279,1707711048792,-500.0,0.00020822,2]
[313771280,1707711048801,-409.32167727,0.00020822,2]
[313771281,1707711048810,-500.0,0.00020822,2]
[313771282,1707711048818,-500.0,0.00020822,2]
[313771283,1707711048827,-500.0,0.00020822,2]
[313771284,1707711048838,-500.0,0.00020822,2]
[313771285,1707711048847,-500.0,0.00020822,2]
[313771286,1707711048856,-500.0,0.00020822,2]
[313771287,1707711048865,-500.0,0.00020822,2]
[313771288,1707711048874,-500.0,0.00020822,2]
[313771289,1707711048883,-500.0,0.00020822,2]
[313771290,1707711048892,-500.0,0.00020822,2]
[313771291,1707711048901,-500.0,0.00020822,2]
[313771292,1707711048910,-500.0,0.00020822,2]
[313771293,1707711048919,-500.0,0.00020822,2]
[313771294,1707711048930,-500.0,0.00020822,2]
[313771295,1707711048940,-382.45172794,0.00020822,2]
[313771296,1707711048948,-500.0,0.00020822,2]
[313771297,1707711048957,-500.0,0.00020822,2]
[313771298,1707711048967,-500.0,0.00020822,2]
[313771299,1707711048976,-500.0,0.00020822,2]
[313771300,1707711048985,-500.0,0.00020822,2]
[313771301,1707711048994,-623.46176947,0.00020822,2]
[313771302,1707711049003,-500.0,0.00020822,2]
[313771303,1707711049012,-500.0,0.00020822,2]
[313771304,1707711049021,-500.0,0.00020822,2]
[313771305,1707711049030,-500.0,0.00020822,2]
[313771306,1707711049040,-539.12690929,0.00020822,2]
[313771307,1707711049049,-500.0,0.00020822,2]
[313771308,1707711049058,-500.0,0.00020822,2]
[313771309,1707711049067,-500.0,0.00020822,2]
[313771310,1707711049077,-500.0,0.00020822,2]
[313771311,1707711049086,-500.0,0.00020822,2]
[313771312,1707711049095,-205.86014637,0.00020822,2]
[313771313,1707711049104,-536.18968253,0.00020822,2]
[313771314,1707711049113,-500.0,0.00020822,2]
[313771315,1707711049122,-500.0,0.00020822,2]
[313771316,1707711049131,-635.38250246,0.00020822,2]
[313771317,1707711049140,-230.69846711,0.00020822,2]
[313771318,1707711049150,-381.33419984,0.00020822,2]
[313771319,1707711049159,-500.0,0.00020822,2]
[313771320,1707711049169,-620.7197452,0.00020822,2]
[313771321,1707711049179,-500.0,0.00020822,2]
[313771322,1707711049188,-500.0,0.00020822,2]
[313771323,1707711049198,-499.99999999,0.00020822,2]
[313771324,1707711049207,-500.0,0.00020822,2]
[313771325,1707711049216,-500.0,0.00020822,2]
[313771326,1707711049225,-500.0,0.00020822,2]
[313771327,1707711049235,-500.0,0.00020822,2]
[313771328,1707711049244,-500.0,0.00020822,2]
[313771329,1707711049253,-500.0,0.00020822,2]
[313771330,1707711049262,-500.0,0.00020822,2]
[313771331,1707711049271,-500.0,0.00020822,2]
[313771332,1707711049281,-500.0,0.00020822,2]
[313771333,1707711049290,-500.0,0.00020822,2]
[313771334,1707711049299,-500.0,0.00020822,2]
[313771335,1707711049309,-500.0,0.00020822,2]
[313771336,1707711049318,-570.32013062,0.00020822,2]
[313771337,1707711049327,-500.0,0.00020822,2]
[313771338,1707711049337,-500.0,0.00020822,2]
[313771339,1707711049346,-500.0,0.00020822,2]
[313771340,1707711049355,-500.0,0.00020822,2]
[313771341,1707711049364,-500.0,0.00020822,2]
[313771342,1707711049373,-500.0,0.00020822,2]
[313771343,1707711049383,-300.0,0.00020822,2]
[313771344,1707711049392,-500.0,0.00020822,2]
[313771345,1707711049401,-500.0,0.00020822,2]
[313771346,1707711049410,-500.0,0.00020822,2]
[313771347,1707711049419,-500.0,0.00020822,2]
[313771348,1707711049429,-500.0,0.00020822,2]
[313771349,1707711049438,-500.0,0.00020822,2]
[313771350,1707711049447,-500.0,0.00020822,2]
[313771351,1707711049456,-500.0,0.00020822,2]
[313771352,1707711049465,-182.74739912,0.00020822,2]
[313771353,1707711049474,-500.0,0.00020822,2]
[313771354,1707711049483,-500.0,0.00020822,2]
[313771355,1707711049492,-318.43508642,0.00020822,2]
[313771356,1707711049502,-414.25827881,0.00020822,2]
[313771357,1707711049511,-500.0,0.00020822,2]
[313771358,1707711049520,-500.0,0.00020822,2]
[313771359,1707711049529,-500.0,0.00020822,2]
[313771360,1707711049538,-500.0,0.00020822,2]
[313771361,1707711049548,-500.0,0.00020822,2]
[313771362,1707711049557,-500.0,0.00020822,2]
[313771363,1707711049567,-500.0,0.00020822,2]
[313771364,1707711049575,-500.0,0.00020822,2]
[313771365,1707711049585,-217.88846512,0.00020822,2]
[313771366,1707711049594,-500.0,0.00020822,2]
[313771367,1707711049604,-500.0,0.00020822,2]
[313771368,1707711049615,-500.0,0.00020822,2]